Cogmind - Beta 12 @@@ ROGUE MODE // 2023.05.24 @ 00:29:59 Player: maxwell Result: Destroyed by S-10 Pest with Light Assault Rifle Performance ------------- Evolutions (0) 0 Regions Visited (1) 200 Robots Destroyed (21) 105 Value Destroyed (393) 393 Prototype IDs (0) 0 Alien Tech Used (0) 0 Bonus (0) 0 TOTAL SCORE: 698 Bonus ------- None Cogmind --------- Core Integrity 0/250 Matter 266/300 Energy 100/100 System Corruption 0% Temperature Cool (0) Movement Treading (320) Ox2 Location -10/Materials Parts ------- > --- POWER (1) -------- (None) > --- PROPULSION (2) --- Light Treads Compact Wheel > --- UTILITY (2) ------ High-capacity Storage Unit Transport Network Coupler > --- WEAPON (2) ------- Light Assault Rifle Light Assault Rifle > --- INVENTORY (20) --- Wheel Small Storage Unit Large Storage Unit Light Assault Rifle Light Assault Rifle Light Assault Rifle Peak State ------------ > --- POWER ------------ Ion Engine > --- PROPULSION ------- Light Treads Wheel > --- UTILITY ---------- High-capacity Storage Unit Transport Network Coupler > --- WEAPON ----------- Light Assault Rifle Light Assault Rifle > --- INVENTORY -------- Light Treads Light Treads Compact Wheel Small Storage Unit Large Storage Unit Light Assault Rifle Light Assault Rifle Light Assault Rifle Light Assault Rifle Light Assault Rifle [Rating: 8] Favorites ----------- Power Ion Engine Engine Ion Engine Propulsion Light Treads Treads Light Treads Leg Aluminum Leg Wheel Wheel Utility Transport Network Coupler Storage High-capacity Storage Unit Processor Transport Network Coupler Weapon Light Assault Rifle Ballistic Gun Light Assault Rifle Build | -11 -10 ------- Run | Jun Mat Slots Evolved . | . . Power . | . . Propulsion . | . . Utility . | . . Weapon . | . . Parts Attached 18 | . 18 Power 2 | . 2 Engine 2 | . 2 Core . | . . Reactor . | . . Propulsion 9 | . 9 Treads 6 | . 6 Leg . | . . Wheel 3 | . 3 Hover . | . . Flight . | . . Utility 3 | . 3 Device . | . . Storage 2 | . 2 Processor 1 | . 1 Hackware . | . . Protection . | . . Artifact . | . . Weapon 4 | . 4 Energy Gun . | . . Energy Cannon . | . . Ballistic Gun 4 | . 4 Ballistic Cannon . | . . Launcher . | . . Special Weapon . | . . Impact Weapon . | . . Slashing Weapon . | . . Piercing Weapon . | . . Special Melee Weapon . | . . Unidentified Prototypes . | . . Parts Lost 7 | . 7 Power 3 | . 3 Propulsion 2 | . 2 Utility . | . . Weapon 2 | . 2 Highest Loss Streak 4 | . 4 To Critical Strikes . | . . Average Slot Usage (%) 96 | . 96 Engine 13 | . 13 Treads 22 | . 22 Leg 2 | . 2 Wheel 1 | . 1 Storage 14 | . 14 Processor 12 | . 12 Ballistic Gun 27 | . 27 Naked Turns . | . . Heaviest Build 47 | 10 47 Greatest Support 40 | 20 40 Greatest Overweight (x) 2 | . 2 Average Overweight (x) . | . . Largest Inventory Capacity 20 | . 20 Average Capacity 16 | . 16 Most Carried 10 | . 10 Average Carried 8 | . 8 Final Capacity 20 | 8 20 Final Carried 6 | 6 6 Class Distribution -------------------- 100% | Mutant Dominant Class ---------------- Mutant | -10/Materials Resources | -11 -10 ----------- Run | Jun Mat Matter Collected 502 | 200 302 Remotely . | . . Salvage Created 593 | . 593 Parts 37 | . 37 Haulers Intercepted 1 | . 1 Recyclers Shooed . | . . Parts Field Recycled . | . . Retrieved Matter . | . . Parts Self-Destructed . | . . Prevented . | . . Kills | -11 -10 ------- Run | Jun Mat Combat Hostiles Destroyed 16 | . 16 Guns 16 | . 16 Classes Destroyed 6 | . 6 Worker 1 | . 1 Hauler 1 | . 1 Recycler 1 | . 1 Watcher 2 | . 2 Swarmer 8 | . 8 Grunt 8 | . 8 Best Kill Streak 6 | . 6 Combat Bots Only 5 | . 5 Max Kills in Single Turn 1 | . 1 Gunslinging . | . . Exploded . | . . Melee . | . . Uniques/NPCs Destroyed . | . . Combat | -11 -10 -------- Run | Jun Mat Damage Taken 1081 | . 1081 Core 254 | . 254 Absorbed by Shields . | . . Core Remaining (%) 100 | 100 . Volleys Fired 98 | . 98 Largest 2 | . 2 Hottest 40 | . 40 Shots Fired 196 | . 196 Gun 196 | . 196 Cannon . | . . Launcher . | . . Special . | . . Kinetic 196 | . 196 Thermal . | . . Explosive . | . . Electromagnetic . | . . Robot Hit Streak 16 | . 16 Robot Miss Streak 5 | . 5 Penetration Max . | . . Secondary Targets 1 | . 1 Max Gunslinging Chain 1 | . 1 Shots Hit Robots 123 | . 123 Core Hits 39 | . 39 Critical Kills . | . . Critical Parts Destroyed 1 | . 1 Critical Strikes 1 | . 1 Destroy 1 | . 1 Melee Attacks . | . . Impact . | . . Slashing . | . . Piercing . | . . Sneak Attacks . | . . Combat Hostiles . | . . Follow-up Attacks . | . . Damage Inflicted 1071 | . 1071 Guns 1066 | . 1066 Cannons . | . . Explosions . | . . Melee . | . . Ramming 5 | . 5 Kinetic 1066 | . 1066 Thermal . | . . Explosive . | . . Electromagnetic . | . . Impact . | . . Slashing . | . . Piercing . | . . Highest Corruption . | . . Average Corruption . | . . Corruption Purged . | . . Corruption Blocked . | . . Overload Shots . | . . Overflow Damage . | . . Projectiles . | . . Explosions . | . . Melee . | . . Knockbacks . | . . Impact . | . . Kinetic . | . . Secondary . | . . Self-Inflicted Damage . | . . Shots . | . . Rammed 2 | . 2 Targets Rammed 3 | . 3 Kicked . | . . Crushed 1 | . 1 Highest Temperature 12 | . 12 Average Temperature 6 | . 6 Received Heat Transfer 252 | . 252 Siege Activations . | . . Robots Corrupted . | . . Combat Hostiles . | . . Parts Fried . | . . Impact Corruptions . | . . Robots Melted . | . . Combat Hostiles . | . . Parts Melted . | . . Heat Transferred . | . . Parts Sabotaged . | . . Parts Stolen . | . . Parts Stripped . | . . Power Chain Reactions . | . . Missiles Intercepted . | . . Alert | -11 -10 ------- Run | Jun Mat Peak Influence 150 | . 150 Initial . | . . Average 68 | . 68 Maximum Alert Level . | . . Low Security (%) 100 | . 100 Level 1 . | . . Level 2 . | . . Level 3 . | . . Level 4 . | . . Level 5 . | . . High Security . | . . Max Security . | . . Squads Dispatched 2 | . 2 Investigation 2 | . 2 Extermination . | . . Reinforcement . | . . Assault . | . . Garrison . | . . Intercept . | . . Searches Triggered . | . . Construction Impeded . | . . Haulers Reinforced . | . . Active Scanning Responses . | . . Cargo Convoy Interrupts . | . . Stealth | -11 -10 --------- Run | Jun Mat Distress Signals . | . . Communications Jammed . | . . Distress Signals . | . . Times Spotted 27 | . 27 Peak Tracking Total 5 | . 5 Tactical Retreats 2 | . 2 Traps | -11 -10 ------- Run | Jun Mat Traps Triggered 3 | . 3 Indirectly . | . . Trap Hack Attempts . | . . Triggered . | . . Disarmed . | . . Reprogrammed . | . . Reused . | . . Traps Extracted . | . . Installed . | . . Triggered . | . . Machines | -11 -10 ---------- Run | Jun Mat Machines Disabled . | . . Max in Single Turn . | . . Machines Repaired . | . . Machines Sabotaged . | . . Overloaded Fab Kills . | . . Hacking | -11 -10 --------- Run | Jun Mat Machines Accessed 7 | . 7 Terminals 5 | . 5 Fabricators . | . . Repair Stations . | . . Recycling Units 2 | . 2 Scanalyzers . | . . Garrison Access . | . . Total Hacks 16 | . 16 Successful 6 | . 6 Failed 10 | . 10 Catastrophic . | . . Database Lockouts . | . . Manual 16 | . 16 Terminals 13 | . 13 Fabricators . | . . Repair Stations . | . . Recycling Units 3 | . 3 Scanalyzers . | . . Garrison Access . | . . Terminal Hacks 4 | . 4 Part Schematic 1 | . 1 Robot Analysis 3 | . 3 Fabricator Hacks . | . . Repair Station Hacks . | . . Recycling Unit Hacks . | . . Scanalyzer . | . . Garrison Access Hacks . | . . Unauthorized Hacks 2 | . 2 Terminals . | . . Fabricators . | . . Repair Stations . | . . Recycling Units 2 | . 2 Tunnel 2 | . 2 Scanalyzers . | . . Garrison Access . | . . Data Cores Recovered . | . . Used . | . . Hacking Detections 5 | . 5 Full Trace Events . | . . Feedback Events . | . . Feedback Blocked . | . . Robot Schematics Acquired . | . . Robots Built . | . . Authchips . | . . Time . | . . Total Robot Build Rating . | . . Part Schematics Acquired 1 | . 1 Parts Built . | . . Authchips . | . . Time . | . . Total Part Build Rating . | . . Parts Repaired . | . . Time . | . . Parts Recycled . | . . Recycled Matter . | . . Retrieved Matter . | . . Retrieved Components . | . . Parts Scanalyzed . | . . Part Schematics Acquired . | . . Parts Damaged . | . . Bothacking | -11 -10 ------------ Run | Jun Mat Used RIF Installer . | . . Robots Hacked . | . . Non-combat . | . . Combat . | . . Robot Hacks Applied . | . . Relay Couplers Released . | . . Fabnet Peak Effective % . | . . Robots Rewired . | . . Allies Hacked . | . . Hacks Repelled . | . . Allies | -11 -10 -------- Run | Jun Mat Total Allies . | . . Largest Group . | . . Highest-Rated Group . | . . Highest-Rated Ally . | . . Total Orders . | . . Ally Attacks . | . . Total Damage . | . . Kills . | . . Allies Corrupted . | . . Allies Melted . | . . Intel | -11 -10 ------- Run | Jun Mat Robot Analysis Total 3 | . 3 Derelict Logs Recovered . | . . Drone Launches . | . . Drone Recoveries . | . . Exploration | -11 -10 ------------- Run | Jun Mat Turns Passed 1467 | . 1467 Spaces Moved 553 | 1 552 Core . | . . Treads 436 | . 436 Legs 108 | 1 107 Wheels 9 | . 9 Hover . | . . Flight . | . . Fastest Speed 110 | 120 110 Average Speed 201 | 120 201 Slowest Speed 320 | 120 320 Overloaded Moves . | . . Propulsion Burnouts . | . . Robots Hopped . | . . Cave-ins Triggered . | . . Exploration Rate (%) 44 | 2 86 Regions Visited 1 Branch Regions . Pre-discovered Areas 2 | . 2 Known Exits Taken . | . . Unknown Exits Taken 1 | 1 . Scrap Searched . | . . Spaces Dug . | . . Terrain Destroyed . | . . Melee . | . . Projectile . | . . AOE . | . . Terrain Rammed . | . . Walls Destroyed . | . . Machines Disabled . | . . Actions | -11 -10 --------- Run | Jun Mat Total 745 | . 745 Wait 62 | . 62 Move 552 | . 552 Hop . | . . Pick Up 8 | . 8 Fast Attach 7 | . 7 Attach 8 | . 8 Detach . | . . Swap 3 | . 3 Drop 4 | . 4 Fire 98 | . 98 Melee . | . . Ram . | . . Kick . | . . Crush 3 | . 3 Escape Stasis . | . . Rewire . | . . Trap . | . . Miscellaneous . | . . Route ------- -11/Junkyard -10/Materials (discovered 4 exits: [*Mat x2] / [*Min x2]) History --------- Turn | Location | Event 1 | -11/Junkyard | Discovered new exit (range 0) 1 | -11/Junkyard | Entered Materials 117 | -10/Materials | Discovered new exit (range 6) 314 | -10/Materials | Build established: Mutant 354 | -10/Materials | Discovered new exit (range 16) 570 | -10/Materials | Discovered new exit (range 5) 1197 | -10/Materials | Discovered new exit (range 6) 1300 | -10/Materials | Core integrity fell below 50% 1355 | -10/Materials | Lost 4 parts (1p2n1w) 1447 | -10/Materials | Core integrity fell below 20% 1468 | -10/Materials | Destroyed by S-10 Pest with Light Assault Rifle Last Messages --------------- as the hostile is visible. 01089_ K-01 Serf cleans the Electrolysis Chamber. 01183_ Slammed into K-01 Serf. 01197_ EXIT=FOUND 01295_ W-16 Scout destroyed. 01316_ Lgt. Assault Rifle destroyed. 01318_ Lgt. Treads destroyed. 01322_ Ion Engine destroyed. 01324_ Lgt. Treads destroyed. 01329_ G-34 Mercenary destroyed. 01342_ Acquired 38 matter. 01345_ Acquired 8 matter. 01351_ Acquired Ion Engine. 01374_ Acquired 18 matter. 01440_ S-10 Pest destroyed. 01443_ Lgt. Assault Rifle destroyed. 01446_ S-10 Pest destroyed. 01452_ Ion Engine destroyed. 01454_ S-10 Pest destroyed. 01467_ A-02 Transporter destroyed. Map ----- +----------------------------------------------------+ | ## #???????????????????# #????? | | ### #?????############### ####?? | | ??## ######+##### #?????# # !##? | | ##?# #?# #= #?????# # !#? | | #?# #?# """ #%! #?????# # !#? | | #?#=#?# """"" # #?????# # ###### !#? | | #?#[#?# """"" # #?????# # #????# !#? | | #?#%#?# """"" # #?????# + #????# !##? | | #?#%#?# """ # #?????# # #########?? | | #?#=#?#? ? # #?????# # #= #??? | | ###%#??????????# #?????# # # """ #??? | | !!=#??????????# #?????##+####### # """ #??? | | ==#??????????# #??????# ## ! + """ #??? | | #??????????# #??????# ## *%!=# #??? | | ##+#####????????# #??????# ## ==[# = #??? | | #????????# %=#??????# ## ####+#########??? | | "" #????????# #??????# ## # % #??????? | | Y" #????????# #??????# # """ #??????? | | #????????# #??????# # """ #??????? | | ################# #??????# # """ #??????? | | ??# ######## # #??????? | | ??# ## ## #! ]]! #??????? | | ??# ## ## # ]]! #??????? | | ??# ###### ## = !## # ]]! #??????? | | ??# #????# """ ## !!## # #??????? | | ??# #????# """ ##!=*@## #####+####??????? | | ??# #????# """ ##*%[%# #???????????????? | | ??# #????# ##[[%=+ #???????????????? | | ??# #????# ##=%s[# #???????????????? | | ??# #????# ##%=*%# #???????????????? | | ### #???## !% ####+## ###?????????????? | | #???#T ! #?????????????? | | #???## a #?????????????? | | #????# #?????????????? | | ### #????##+################## #?????????????? | | ??# #????# #???????? ???????????? | | ??# #????# #???????? ??????????? | | ??# #????# ! #???????? ??????????? | | ??# #????# #???????? ??????????? | | ??# #????# #?????????| ????????????? | | ??# #????# #?????????????????????????? | | ??# #????# #?????????????????????????? | | ??# #????######+######?????????????????????????? | | ?## ##??????# #????????????????????????????? | | ## ######## #????????????????????????????? | | ## #????????????????????????????? | | ## #????????????????????????????? | | ## #????????????????????????????? | | ## ######### ##????????????????????????????? | | ####+######????# #?????????????????????????????? | +----------------------------------------------------+ Best States ------------- Heat Dissipation 25 Energy Generation 10 Energy Capacity 250 Matter Stores 300 Matter Capacity 300 Sight Range 16 Terrain Scan Density 10 Evasion (%) 55 Recoil Reduction 2 Item Schematics ----------------- Huge Storage Unit | -10/Materials | Hacked Robot Schematics ------------------ None Fabricated ------------ Nothing Alien Tech Used ----------------- None Achievements -------------- None Challenges ------------ None Game ------ Seed AccelerationWeldingSplitter Manual? 0 Play Time 00:09:53 Cumulative 349.8 hours Start 2023.05.23 @ 21:05:02 End 2023.05.24 @ 00:29:59 Sessions 2 Manual Loads 0 Difficulty Rogue Special Mode None Game No. 505 Rogue 478 Adventurer 4 Explorer 23 Win Type - Total 19 Types 14/0/2/2/1/0/0/0/0 Lore% 81 Gallery% 93 Achievement% 82 Wizard Run 0 Options --------- ASCII 0 Keyboard 1 Movement Numpad Keybinds 0 Fullscreen 1 Font 18/SmallcapsGlow Map View 76x50 Tactical HUD 1 Map Filters NONE Filters NONE Steam 1 RUN: 105ea218-ee51-4115-8ba5-9c50c9dbab22